[Event "FIDE World School-ch G-15 2025"]
[Site "Vrnjacka Banja"]
[Date "2025.03.26"]
[Round "7.1"]
[White "Japparbekova, Malika"]
[Black "Zarkym, Ailin"]
[Result "0-1"]
[Annotator "NA RC"]
[ECO "C63"]
[WhiteElo "1878"]
[BlackElo "1763"]
[PlyCount "72"]
[EventDate "2025.03.19"]
[EventType "swiss"]
[EventCountry "SRB"]
[SourceTitle "playchess.com"]
[Source "ChessBase"]
[SourceQuality "1"]
[TimeControl "5400+30"]

1. e4 {[%emt 0:00:02]} e5 {[%emt 0:00:12]} 2. Nf3 {[%emt 0:00:06]} Nc6 {[%emt 0:00:04]} 3. Bb5 {[%emt 0:00:08]} f5 {[%emt 0:00:07]} 4. d3 {[%emt 0:00:06]} fxe4 {[%emt 0:00:05]} 5. dxe4 {[%emt 0:00:04]} Nf6 {[%emt 0:00:06]} 6. Qd3 {[%emt 0:01:58]} Bb4+ {[%emt 0:00:32]} 7. c3 {[%emt 0:03:30]} Bd6 {[%emt 0:04:18]} 8. Bg5 {[%emt 0:02:18]} O-O {[%emt 0:01:59]} 9. Nbd2 {[%emt 0:00:09]} a6 {[%emt 0:01:35]} 10. Ba4 {[%emt 0:03:14]} b5 {[%emt 0:01:41]} 11. Bb3+ {[%emt 0:02:09]} Kh8 {[%emt 0:00:07]} 12. h4 {[%emt 0:03:47]} Qe8 {[%emt 0:01:27]} 13. Bxf6 {[%emt 0:05:48]} Rxf6 {[%emt 0:00:16]} 14. g4 {[%emt 0:00:17]} Na5 {[%emt 0:02:50]} 15. Bc2 {[%emt 0:04:59]} Nc4 {[%emt 0:05:30]} 16. O-O-O {[%emt 0:02:38]} Nxd2 {[%emt 0:00:33]} 17. Rxd2 {[%emt 0:00:26]} Qf7 {[%emt 0:00:09]} 18. Bb3 {[%emt 0:01:35]} Qf8 {[%emt 0:00:59]} 19. Rh3 {[%emt 0:03:59]} Bb7 {[%emt 0:01:19]} 20. Re2 {[%emt 0:01:51]} a5 {[%emt 0:01:28]} 21. g5 {[%emt 0:05:47]} Rf4 {[%emt 0:00:25]} 22. g6 {[%emt 0:10:13]} Qf6 {[%emt 0:17:03]} 23. Rg3 {[%emt 0:26:31]} a4 {[%emt 0:04:21]} 24. Bf7 {[%emt 0:01:30]} h6 {[%emt 0:03:26]} 25. a3 {[%emt 0:02:01]} Rf8 {[%emt 0:18:22]} 26. Kd1 {[%emt 0:01:56]} Bc6 {[%emt 0:03:14]} 27. Ke1 {[%emt 0:00:50]} Bc5 {[%emt 0:00:15]} 28. Kf1 {[%emt 0:03:21]} d6 {[%emt 0:32:07]} 29. Kg2 {[%emt 0:04:45]} Bd7 {[%emt 0:00:00]} 30. Re1 {[%emt 0:03:21]} Bg4 {[%emt 0:00:00]} 31. Rh1 {[%emt 0:00:22]} d5 {[%emt 0:00:00]} 32. Qxd5 {[%emt 0:04:49]} Bxf3+ {[%emt 0:00:00]} 33. Rxf3 {[%emt 0:01:48]} Rg4+ {[%emt 0:00:00]} 34. Kf1 {[%emt 0:00:37]} Qxf3 {[%emt 0:00:00]} 35. Rh2 {[%emt 0:00:32]} Be7 {[%emt 0:00:00]} 36. Qxb5 {[%emt 0:00:29]} Qd1# {[%emt 0:00:00]} 0-1

[Event "FIDE World School-ch G-15 2025"]
[Site "Vrnjacka Banja"]
[Date "2025.03.26"]
[Round "7.2"]
[White "Imomkuzieva, Nilufarkhon"]
[Black "Ferrer Naranjo, Liennys"]
[Result "1-0"]
[Annotator "NA RC"]
[ECO "B18"]
[WhiteElo "1983"]
[BlackElo "1950"]
[PlyCount "109"]
[EventDate "2025.03.19"]
[EventType "swiss"]
[EventCountry "SRB"]
[SourceTitle "playchess.com"]
[Source "ChessBase"]
[SourceQuality "1"]
[TimeControl "5400+30"]

1. e4 {[%emt 0:00:30]} c6 {[%emt 0:00:30]} 2. d4 {[%emt 0:00:30]} d5 {[%emt 0:00:30]} 3. Nc3 {[%emt 0:00:30]} dxe4 {[%emt 0:00:30]} 4. Nxe4 {[%emt 0:00:30]} Bf5 {[%emt 0:00:30]} 5. Ng3 {[%emt 0:00:30]} Bg6 {[%emt 0:00:30]} 6. h4 {[%emt 0:00:30]} h6 {[%emt 0:00:30]} 7. Bf4 {[%emt 0:00:30]} Qa5+ {[%emt 0:00:30]} 8. c3 {[%emt 0:00:30]} Nf6 {[%emt 1:31:00]} 9. Bc4 b5 {[%emt 0:00:00]} 10. Bd3 {[%emt 0:00:00]} Bxd3 {[%emt 0:00:00]} 11. Qxd3 {[%emt 0:00:00]} e6 {[%emt 0:00:00]} 12. Nf3 {[%emt 0:00:03]} Be7 {[%emt 0:00:00]} 13. O-O {[%emt 0:00:13]} Nbd7 {[%emt 0:00:00]} 14. Ne5 {[%emt 0:08:21]} Nxe5 {[%emt 0:00:00]} 15. Bxe5 {[%emt 0:00:05]} O-O {[%emt 0:00:00]} 16. Ne4 {[%emt 0:09:27]} Nd7 {[%emt 0:00:00]} 17. Qg3 {[%emt 0:03:41]} Nxe5 {[%emt 0:00:00]} 18. dxe5 {[%emt 0:00:05]} Kh8 {[%emt 0:00:00]} 19. h5 {[%emt 0:01:46]} Rad8 {[%emt 0:00:00]} 20. Qe3 {[%emt 0:06:30]} Qb6 {[%emt 0:00:00]} 21. Qxb6 {[%emt 0:04:30]} axb6 {[%emt 0:00:00]} 22. Rfd1 {[%emt 0:00:14]} Rd5 {[%emt 0:00:00]} 23. Rxd5 {[%emt 0:00:22]} exd5 {[%emt 0:00:00]} 24. Ng3 {[%emt 0:00:04]} Re8 {[%emt 0:00:00]} 25. Nf5 {[%emt 0:05:47]} Bf8 {[%emt 0:00:00]} 26. f4 {[%emt 0:02:44]} Kh7 {[%emt 0:00:00]} 27. Kf1 {[%emt 0:01:03]} b4 {[%emt 0:00:00]} 28. Nd4 {[%emt 0:06:33]} Rc8 {[%emt 0:00:00]} 29. Ke2 {[%emt 0:01:28]} Bc5 {[%emt 0:00:00]} 30. Kd3 {[%emt 0:05:04]} bxc3 {[%emt 0:00:00]} 31. Kxc3 {[%emt 0:01:02]} g6 {[%emt 0:00:00]} 32. hxg6+ {[%emt 0:02:49]} Kxg6 {[%emt 0:00:00]} 33. Ne2 {[%emt 0:00:21]} Kf5 {[%emt 0:00:00]} 34. Rh1 {[%emt 0:00:18]} Rg8 {[%emt 0:00:00]} 35. Kd3 {[%emt 0:02:01]} Rg6 {[%emt 0:01:22]} 36. a3 {[%emt 0:00:26]} f6 {[%emt 0:04:51]} 37. b4 {[%emt 0:07:07]} Bf2 {[%emt 0:01:35]} 38. Rh5+ {[%emt 0:00:29]} Kg4 {[%emt 0:00:16]} 39. f5 {[%emt 0:00:06]} Rg8 {[%emt 0:04:51]} 40. Rxh6 {[%emt 0:00:04]} Ra8 {[%emt 0:00:25]} 41. Rg6+ {[%emt 0:02:25]} Kh4 {[%emt 0:00:47]} 42. g3+ {[%emt 0:00:37]} Kh3 {[%emt 0:00:20]} 43. Nf4+ {[%emt 0:00:19]} Kh2 {[%emt 0:00:25]} 44. exf6 {[%emt 0:00:39]} Bxg3 {[%emt 0:01:17]} 45. Rh6+ {[%emt 0:00:48]} Kg1 {[%emt 0:00:19]} 46. Ne2+ {[%emt 0:00:11]} Kf2 {[%emt 0:00:51]} 47. Nxg3 {[%emt 0:00:32]} Kxg3 {[%emt 0:00:48]} 48. f7 {[%emt 0:00:05]} Rf8 {[%emt 0:01:05]} 49. Rxc6 {[%emt 0:00:05]} Rxf7 {[%emt 0:00:17]} 50. Rxb6 {[%emt 0:00:13]} Rxf5 {[%emt 0:00:28]} 51. Kd4 {[%emt 0:00:05]} Rf3 {[%emt 0:01:00]} 52. a4 {[%emt 0:00:04]} Ra3 {[%emt 0:00:15]} 53. a5 {[%emt 0:00:04]} Kf4 {[%emt 0:00:22]} 54. a6 {[%emt 0:00:05]} Kf5 {[%emt 0:00:39]} 55. b5 {[%emt 0:00:05]} 1-0

[Event "FIDE World School-ch G-15 2025"]
[Site "Vrnjacka Banja"]
[Date "2025.03.26"]
[Round "7.3"]
[White "Assylkhan, Asiya"]
[Black "Aldea, Maria-Antonia"]
[Result "0-1"]
[Annotator "TA"]
[ECO "D70"]
[WhiteElo "1969"]
[BlackElo "1954"]
[PlyCount "126"]
[EventDate "2025.03.19"]
[EventType "swiss"]
[EventCountry "SRB"]
[SourceTitle "playchess.com"]
[Source "ChessBase"]
[SourceQuality "1"]
[TimeControl "5400+30"]

{[%evp 9,126,25,25,23,27,0,15,-25,-19,-22,-20,-25,-16,-52,-67,-64,-77,-178,-170,-167,-179,-220,-217,-195,-71,-54,-25,-52,-34,-69,-106,-97,-60,-122,-88,-115,-116,-112,-114,-106,-119,-101,-106,-106,-101,-132,-133,-148,-139,-154,-123,-170,-157,-163,-129,-146,-172,-250,-197,-210,-166,-328,-312,-346,-346,-389,-392,-406,-413,-410,-409,-493,-429,-422,-408,-362,0,-457,-448,-493,-439,-579,-547,-566,-575,-555,-560,-563,-530,-600,-594,-655,-642,-709,-681,-916,-909,-886,-911,-892,-877,-829,-788,-940,-932,-991,-1001,-29991,-29991,-29994,-29995,-29995,-29974,-29959,-11235,-5683,-5630,-29993,-29991]} 1. d4 {[%emt 0:00:02]} Nf6 {[%emt 0:00:07]} 2. c4 {[%emt 0:00:05]} c6 {[%emt 0:00:07]} 3. Nf3 {[%emt 0:00:06]} d5 {[%emt 0:00:13]} 4. e3 {[%emt 0:00:07]} g6 {[%emt 0:00:13]} 5. b3 {[%emt 0:00:50]} Bg7 {[%emt 0:00:24][%cal Oc6c5]} 6. Bb2 {[%emt 0:00:07] D70: Grünfeld: Unusual White 3rd moves (met by ...d5).} O-O {[%emt 0:01:11]} 7. Bd3 {[%emt 0:00:26]} Bg4 {[%emt 0:01:43]} 8. h3 {[%emt 0:00:31] The position is equal.} Bxf3 {[%emt 0:01:01]} 9. Qxf3 {[%emt 0:00:13] [#]} e5 $146 {[%emt 0:06:54]} (9... Nbd7 10. Nd2 Re8 11. cxd5 cxd5 12. Qe2 Rc8 13. O-O a6 14. Rac1 Qa5 15. a3 e6 {1-0 Ret,A (2023)-Rakhmangulova,I (1904) Pardubice rapid op 33rd 2022 (4)}) 10. dxe5 {[%emt 0:31:21]} Nfd7 {[%emt 0:00:12]} 11. O-O {[%emt 0:00:46]} (11. cxd5 $2 Nxe5 12. Bxe5 Bxe5 $19) 11... dxc4 {[%emt 0:13:23]} 12. Bxc4 {[%emt 0:03:40] aiming for Qg3.} b5 {[%emt 0:00:59]} 13. Bxb5 {[%emt 0:00:13]} (13. Na3 $17 bxc4 14. Nxc4) 13... Nxe5 $19 {[%emt 0:00:10]} 14. Bxe5 {[%emt 0:00:07]} Bxe5 {[%emt 0:00:08]} 15. Na3 {[%emt 0:00:21]} (15. Bxc6 $2 Nxc6 16. Na3 Bxa1 17. Rxa1 Qe7 $19) (15. Rd1 Qf6 (15... Qa5 $2 16. Nc3 $19)) 15... Bxa1 {[%emt 0:00:48]} 16. Rxa1 {[%emt 0:00:07] [#]} Qa5 {[%emt 0:00:11]} (16... Qd2 $1 $19 {[%cal Rd2b2] and Black stays clearly on top. and ...Qb2 would now be decisive} 17. Bc4 Qb2) 17. Ba4 $17 {[%emt 0:00:22]} Qd5 {[%emt 0:06:32]} 18. Qe2 {[%emt 0:20:28]} Rd8 {[%emt 0:06:27]} 19. Nc4 {[%emt 0:00:22]} Na6 {[%emt 0:02:25][%cal Bb8a6,Ba6b4,Bb4d3][%mdl 32]} 20. e4 {[%emt 0:00:41]} Qd4 {[%emt 0:06:16]} 21. Rc1 {[%emt 0:02:22]} (21. Rf1 $15) 21... Nb4 {[%emt 0:04:32]} 22. a3 {[%emt 0:03:53]} Nd3 {[%emt 0:00:33]} 23. Rc2 {[%emt 0:02:00][%cal Og1h2]} Nf4 {[%emt 0:09:18] Black has more active pieces.} 24. Qf3 {[%emt 0:00:34]} Qd1+ {[%emt 0:00:48]} 25. Qxd1 {[%emt 0:00:07]} Rxd1+ {[%emt 0:00:03] Black attacks} 26. Kh2 {[%emt 0:00:06]} Rc8 {[%emt 0:02:37]} 27. Na5 {[%emt 0:05:42]} Ra1 {[%emt 0:06:23]} 28. Nxc6 {[%emt 0:07:21]} Rc7 {[%emt 0:00:18] Against Ne7+} (28... Rxa3 $2 {too greedy.} 29. Ne7+ Kg7 30. Nxc8 $18 (30. Rxc8 Nd3 $18)) 29. Rd2 {[%emt 0:04:33]} Rxa3 {[%emt 0:02:28]} 30. Ne5 {[%emt 0:00:15]} (30. Nd4 $17 {might work better.} Ra1 31. g3) 30... Ne6 {[%emt 0:03:46]} 31. f3 {[%emt 0:02:11]} Ra1 {[%emt 0:04:11]} 32. Ng4 {[%emt 0:07:01]} Kg7 {[%emt 0:01:06]} 33. Kg3 {[%emt 0:01:58]} (33. Ne5 $142) 33... Rac1 {[%emt 0:03:41]} 34. Ne3 {[%emt 0:01:33]} Nc5 {[%emt 0:02:17]} 35. Bb5 $2 {[%emt 0:03:03]} (35. Ra2) 35... Nxb3 $19 {[%emt 0:01:19]} 36. Ra2 {[%emt 0:00:20]} Ra1 {[%emt 0:02:34]} 37. Rb2 {[%emt 0:00:43]} Nd4 {[%emt 0:00:36]} 38. Be8 {[%emt 0:00:13]} a5 {[%emt 0:01:43]} 39. Nd5 {[%emt 0:00:37]} Ra7 {[%emt 0:01:04]} 40. Nc3 {[%emt 0:00:33]} Ra3 {[%emt 0:02:32]} 41. Nd5 {[%emt 0:00:14]} Ra8 {[%emt 0:01:31]} 42. Bd7 {[%emt 0:00:15]} Ra7 {[%emt 0:02:18]} 43. Be8 {[%emt 0:00:02]} Ne6 {[%emt 0:02:26]} 44. Bc6 {[%emt 0:01:20]} Nc5 {[%emt 0:00:52]} 45. e5 {[%emt 0:02:33]} a4 {[%emt 0:01:31]} 46. Nf6 {[%emt 0:01:29]} Rb3 {[%emt 0:01:18]} 47. Rd2 {[%emt 0:00:49]} Ne6 {[%emt 0:01:05] Against Rd8} 48. Bd5 {[%emt 0:00:31]} Rb6 {[%emt 0:00:44]} 49. Rc2 {[%emt 0:00:22]} Rb8 {[%emt 0:01:01] Dodges Rc8} 50. f4 {[%emt 0:01:04]} a3 {[%emt 0:00:33]} 51. h4 {[%emt 0:00:42]} Rc7 {[%emt 0:00:37]} 52. Rd2 {[%emt 0:00:35]} Rc3+ {[%emt 0:00:20]} 53. Bf3 {[%emt 0:00:17]} Rb2 {[%emt 0:00:29]} 54. Rd7 {[%emt 0:00:11]} a2 {[%emt 0:00:22]} 55. Ra7 {[%emt 0:00:04]} Rc1 {[%emt 0:00:30]} 56. Ne8+ {[%emt 0:00:55]} Kf8 {[%emt 0:00:43]} 57. Nd6 {[%emt 0:00:40]} a1=Q {[%emt 0:00:19]} (57... a1=B 58. Rxf7+ Kg8 59. Bd5 Rc3+ 60. Kh2 Nxf4 61. Rxf4+ Kg7 62. Rf7+ Kh6 63. Ra7 $14 (63. e6 Re2 $11)) 58. Rxf7+ {[%emt 0:00:06]} Kg8 {[%emt 0:00:00]} 59. Bd5 {[%emt 0:01:51]} Qa3+ {[%emt 0:00:45]} 60. Kh2 {[%emt 0:00:00]} Qxd6 {[%emt 0:00:46]} 61. exd6 {[%emt 0:00:00]} Kxf7 {[%emt 0:00:09]} 62. d7 {[%emt 0:00:00]} Rb8 {[%emt 0:00:10]} 63. g4 {[%emt 0:00:00]} Ke7 {[%emt 0:00:07] Weighted Error Value: White=0.52/Black=0.17 (very precise)   Mistake:       	White=5     	Black=1      Inaccurate:     	White=8     	Black=2      OK:         	White=8     	Black=20     Best:        	White=2     	Black=2} 0-1

[Event "FIDE World School-ch G-15 2025"]
[Site "Vrnjacka Banja"]
[Date "2025.03.26"]
[Round "7.4"]
[White "Aadya Gupta"]
[Black "Preobrazhenskaya, Diana"]
[Result "1/2-1/2"]
[Annotator "NA RC"]
[ECO "E12"]
[WhiteElo "1928"]
[BlackElo "2032"]
[PlyCount "88"]
[EventDate "2025.03.19"]
[EventType "swiss"]
[EventCountry "SRB"]
[SourceTitle "playchess.com"]
[Source "ChessBase"]
[SourceQuality "1"]
[TimeControl "5400+30"]

1. d4 {[%emt 0:00:41]} Nf6 {[%emt 0:00:05]} 2. c4 {[%emt 0:00:02]} e6 {[%emt 0:00:04]} 3. Nf3 {[%emt 0:00:03]} b6 {[%emt 0:00:06]} 4. a3 {[%emt 0:00:04]} Bb7 {[%emt 0:00:57]} 5. Nc3 {[%emt 0:00:27]} d5 {[%emt 0:00:16]} 6. cxd5 {[%emt 0:00:13]} exd5 {[%emt 0:01:05]} 7. Bf4 {[%emt 0:02:05]} Bd6 {[%emt 0:01:21]} 8. Bxd6 {[%emt 0:00:39]} Qxd6 {[%emt 0:00:05]} 9. Qa4+ {[%emt 0:01:43]} c6 {[%emt 0:02:02]} 10. e3 {[%emt 0:00:40]} Nbd7 {[%emt 0:01:56]} 11. Bd3 {[%emt 0:02:39]} O-O {[%emt 0:01:13]} 12. O-O {[%emt 0:00:02]} Rfe8 {[%emt 0:01:43]} 13. Qc2 {[%emt 0:03:12]} c5 {[%emt 0:03:33]} 14. Bf5 {[%emt 0:08:57]} cxd4 {[%emt 0:10:56]} 15. Nxd4 {[%emt 0:17:19]} Nc5 {[%emt 0:09:10]} 16. b4 {[%emt 0:03:34]} Nce4 {[%emt 0:03:48]} 17. Rac1 {[%emt 0:13:19]} g6 {[%emt 0:29:14]} 18. Bxe4 {[%emt 0:07:28]} Ng4 {[%emt 0:04:14]} 19. g3 {[%emt 0:03:30]} dxe4 {[%emt 0:00:06]} 20. Ncb5 {[%emt 0:13:38]} Qe5 {[%emt 0:03:51]} 21. Qc7 {[%emt 0:02:33]} Qh5 {[%emt 0:08:47]} 22. h4 {[%emt 0:00:19]} Bd5 {[%emt 0:02:56]} 23. Nd6 {[%emt 0:04:53]} Rf8 {[%emt 0:00:45]} 24. Qe7 {[%emt 0:01:37]} Ne5 {[%emt 0:03:39]} 25. Qf6 {[%emt 0:03:16]} Ng4 {[%emt 0:05:41]} 26. Qg5 {[%emt 0:01:17]} Qxg5 {[%emt 0:00:46]} 27. hxg5 {[%emt 0:00:01]} Rad8 {[%emt 0:01:53]} 28. N6b5 {[%emt 0:01:01]} a6 {[%emt 0:00:13]} 29. Nc7 {[%emt 0:02:14]} Bb7 {[%emt 0:00:32]} 30. b5 {[%emt 0:00:13]} a5 {[%emt 0:00:55]} 31. Rfd1 {[%emt 0:01:50]} Ne5 {[%emt 0:00:50]} 32. Nc6 {[%emt 0:02:11]} Rxd1+ {[%emt 0:00:56]} 33. Rxd1 {[%emt 0:00:01]} Bxc6 {[%emt 0:00:49]} 34. bxc6 {[%emt 0:05:49]} Nxc6 {[%emt 0:00:16]} 35. Rd6 {[%emt 0:00:00]} Ne5 {[%emt 0:00:11]} 36. Rxb6 {[%emt 0:00:00]} Nf3+ {[%emt 0:01:08]} 37. Kg2 {[%emt 0:00:00]} Nxg5 {[%emt 0:00:04]} 38. Rb5 {[%emt 0:00:00]} f5 {[%emt 0:01:37]} 39. Rxa5 {[%emt 0:00:00]} Kg7 {[%emt 0:00:33]} 40. a4 {[%emt 0:00:00]} Rd8 {[%emt 0:00:58]} 41. Rd5 {[%emt 0:00:00]} Rb8 {[%emt 0:00:49]} 42. Rb5 {[%emt 0:00:00]} Rd8 {[%emt 0:00:52]} 43. Rd5 {[%emt 0:00:00]} Rb8 {[%emt 0:00:31]} 44. Rb5 {[%emt 0:00:00]} Rd8 {[%emt 0:01:04]} 1/2-1/2

[Event "FIDE World School-ch G-15 2025"]
[Site "Vrnjacka Banja"]
[Date "2025.03.26"]
[Round "7.5"]
[White "Ashotia, Barbare"]
[Black "Torres Ccahuay, Dayana Nievevska"]
[Result "1-0"]
[Annotator "NA RC"]
[ECO "B12"]
[WhiteElo "1895"]
[BlackElo "1840"]
[PlyCount "73"]
[EventDate "2025.03.19"]
[EventType "swiss"]
[EventCountry "SRB"]
[SourceTitle "playchess.com"]
[Source "ChessBase"]
[SourceQuality "1"]
[TimeControl "5400+30"]

1. e4 {[%emt 0:00:07]} c6 {[%emt 0:00:10]} 2. d4 {[%emt 0:00:16]} Na6 {[%emt 0:02:13]} 3. Nc3 {[%emt 0:04:59]} Nc7 {[%emt 0:00:15]} 4. Bf4 {[%emt 0:03:41]} d6 {[%emt 0:02:19]} 5. Nf3 {[%emt 0:05:26]} Bg4 {[%emt 0:02:51]} 6. Bc4 {[%emt 0:05:44]} e6 {[%emt 0:03:56]} 7. Qe2 {[%emt 0:05:21]} Ne7 {[%emt 0:18:36]} 8. O-O-O {[%emt 0:05:09]} g6 {[%emt 0:13:51]} 9. Qd2 {[%emt 0:07:04]} d5 {[%emt 0:06:11]} 10. Be5 {[%emt 0:05:58]} Rg8 {[%emt 0:00:18]} 11. Bxc7 {[%emt 0:00:30]} Qxc7 {[%emt 0:00:23]} 12. exd5 {[%emt 0:01:22]} exd5 {[%emt 0:07:40]} 13. Be2 {[%emt 0:04:02]} O-O-O {[%emt 0:01:34]} 14. Ne5 {[%emt 0:02:44]} Be6 {[%emt 0:01:29]} 15. g4 {[%emt 0:11:58]} Bg7 {[%emt 0:06:44]} 16. f4 {[%emt 0:00:44]} Kb8 {[%emt 0:00:26]} 17. Na4 {[%emt 0:02:20]} f6 {[%emt 0:02:19]} 18. Nc5 {[%emt 0:05:03]} Bc8 {[%emt 0:00:37]} 19. Ned3 {[%emt 0:02:27]} f5 {[%emt 0:01:05]} 20. Ne5 {[%emt 0:04:48]} Bxe5 {[%emt 0:04:13]} 21. fxe5 {[%emt 0:00:06]} fxg4 {[%emt 0:01:02]} 22. Qb4 {[%emt 0:01:56]} Ka8 {[%emt 0:00:39]} 23. Rd3 {[%emt 0:00:32]} b6 {[%emt 0:01:27]} 24. Na4 {[%emt 0:00:46]} h5 {[%emt 0:07:22]} 25. Ra3 {[%emt 0:03:25]} Kb8 {[%emt 0:00:22]} 26. Nc5 {[%emt 0:04:18]} Rde8 {[%emt 0:01:13]} 27. Rd1 {[%emt 0:00:43]} Bb7 {[%emt 0:02:26]} 28. Nxb7 {[%emt 0:02:12]} Kxb7 {[%emt 0:01:57]} 29. Rdd3 {[%emt 0:01:59]} Ref8 {[%emt 0:03:59]} 30. Ra4 {[%emt 0:00:28]} Ra8 {[%emt 0:04:29]} 31. Rda3 {[%emt 0:01:26]} Rgf8 {[%emt 0:01:28]} 32. Ba6+ {[%emt 0:03:25]} Kb8 {[%emt 0:00:03]} 33. Qe1 {[%emt 0:00:31]} Nf5 {[%emt 0:01:05]} 34. Rc3 {[%emt 0:00:15]} Qd7 {[%emt 0:00:29]} 35. b4 {[%emt 0:00:25]} c5 {[%emt 0:02:01]} 36. e6 {[%emt 0:00:26]} Qxa4 {[%emt 0:00:24]} 37. Qe5+ {[%emt 0:00:05]} 1-0

[Event "FIDE World School-ch G-15 2025"]
[Site "Vrnjacka Banja"]
[Date "2025.03.26"]
[Round "7.6"]
[White "Margad, Munkhpurev"]
[Black "Mihailovic, Selena"]
[Result "1-0"]
[Annotator "NA RC"]
[ECO "C95"]
[WhiteElo "1925"]
[BlackElo "1836"]
[PlyCount "99"]
[EventDate "2025.03.19"]
[EventType "swiss"]
[EventCountry "SRB"]
[SourceTitle "playchess.com"]
[Source "ChessBase"]
[SourceQuality "1"]
[TimeControl "5400+30"]

1. e4 {[%emt 0:00:03]} e5 {[%emt 0:00:05]} 2. Nf3 {[%emt 0:00:05]} Nc6 {[%emt 0:00:05]} 3. Bb5 {[%emt 0:00:07]} a6 {[%emt 0:00:04]} 4. Ba4 {[%emt 0:00:07]} Nf6 {[%emt 0:00:04]} 5. O-O {[%emt 0:00:09]} Be7 {[%emt 0:00:03]} 6. Re1 {[%emt 0:00:11]} b5 {[%emt 0:00:25]} 7. Bb3 {[%emt 0:00:07]} d6 {[%emt 0:00:03]} 8. c3 {[%emt 0:00:07]} O-O {[%emt 0:00:04]} 9. h3 {[%emt 0:00:05]} Nb8 {[%emt 0:00:38]} 10. d4 {[%emt 0:01:26]} Nbd7 {[%emt 0:00:08]} 11. a4 {[%emt 0:08:23]} Rb8 {[%emt 0:05:44]} 12. Bc2 {[%emt 0:03:03]} c5 {[%emt 0:03:19]} 13. Nbd2 {[%emt 0:04:09]} Re8 {[%emt 0:07:56]} 14. Nf1 {[%emt 0:01:39]} Bf8 {[%emt 0:01:10]} 15. Ng3 {[%emt 0:01:01]} g6 {[%emt 0:00:12]} 16. axb5 {[%emt 0:17:33]} axb5 {[%emt 0:01:40]} 17. Bg5 {[%emt 0:00:42]} Bg7 {[%emt 0:08:08]} 18. Qd2 {[%emt 0:02:44]} Qb6 {[%emt 0:09:30]} 19. d5 {[%emt 0:02:14]} c4 {[%emt 0:02:02]} 20. Qe2 {[%emt 0:23:34]} Nc5 {[%emt 0:17:30]} 21. Nh4 {[%emt 0:01:32]} Qc7 {[%emt 0:19:23]} 22. Qf3 {[%emt 0:02:57]} Ncd7 {[%emt 0:01:37]} 23. Nf1 {[%emt 0:01:12]} Bb7 {[%emt 0:05:25]} 24. g4 {[%emt 0:01:49]} Ra8 {[%emt 0:01:39]} 25. Rad1 {[%emt 0:03:58]} Reb8 {[%emt 0:05:59]} 26. Ng3 {[%emt 0:02:03]} h6 {[%emt 0:01:40]} 27. Bc1 {[%emt 0:01:24]} Nh7 {[%emt 0:00:41]} 28. Qg2 {[%emt 0:05:14]} Qd8 {[%emt 0:02:26]} 29. Nhf5 {[%emt 0:03:18]} gxf5 {[%emt 0:04:39]} 30. Nxf5 {[%emt 0:00:47]} Ng5 {[%emt 0:01:44]} 31. h4 {[%emt 0:00:12]} f6 {[%emt 0:00:21]} 32. hxg5 {[%emt 0:00:25]} hxg5 {[%emt 0:00:37]} 33. Nxd6 {[%emt 0:00:42]} Nf8 {[%emt 0:01:06]} 34. Nf5 {[%emt 0:00:37]} Ng6 {[%emt 0:00:18]} 35. Qh3 {[%emt 0:01:28]} Qf8 {[%emt 0:00:34]} 36. d6 {[%emt 0:00:27]} Bc6 {[%emt 0:00:25]} 37. Kg2 {[%emt 0:02:49]} Kf7 {[%emt 0:00:37]} 38. Rh1 {[%emt 0:01:12]} Bd7 {[%emt 0:00:27]} 39. Qf3 {[%emt 0:02:21]} Bxf5 {[%emt 0:00:33]} 40. exf5 {[%emt 0:00:06]} Nh4+ {[%emt 0:00:35]} 41. Rxh4 {[%emt 0:00:07]} gxh4 {[%emt 0:00:04]} 42. Qd5+ {[%emt 0:00:19]} Ke8 {[%emt 0:00:05]} 43. Qe6+ {[%emt 0:00:36]} Kd8 {[%emt 0:00:06]} 44. d7 {[%emt 0:01:11]} Qe7 {[%emt 0:01:01]} 45. Qc6 {[%emt 0:01:37]} Ra7 {[%emt 0:01:24]} 46. Be3 {[%emt 0:00:07]} Rxd7 {[%emt 0:00:33]} 47. Bb6+ {[%emt 0:00:05]} Rxb6 {[%emt 0:00:33]} 48. Qxb6+ {[%emt 0:00:27]} Ke8 {[%emt 0:00:26]} 49. Qxb5 {[%emt 0:00:07]} Bh6 {[%emt 0:00:24]} 50. Ba4 {[%emt 0:00:24]} 1-0